bitfinex/quotes_SOLUSD_20230404
["timestamp","ask_amount","ask_price","bid_price","bid_amount"]
[1680572661564,20.0,20.476,20.456,27.36247114]
[1680572661745,20.0,20.476,20.457,17.0]
[1680572662757,20.0,20.476,20.457,24.36247114]
[1680572663855,20.0,20.475,20.457,7.36247114]
[1680572664167,37.0,20.474,20.457,7.36247114]
[1680572664351,20.0,20.473,20.457,7.36247114]
[1680572664550,17.0,20.472,20.457,7.36247114]
[1680572664755,112.8802,20.471,20.454,116.9934]
[1680572664952,17.0,20.47,20.454,124.35587114]
[1680572672056,42.64,20.47,20.454,116.9934]
[1680572672257,17.0,20.469,20.454,116.9934]
[1680572672458,20.0,20.468,20.454,116.9934]
[1680572672656,20.0,20.466,20.454,116.9934]
[1680572672968,17.0,20.465,20.454,116.9934]
[1680572676860,17.0,20.467,20.454,116.9934]
[1680572677171,17.0,20.468,20.454,116.9934]
[1680572677373,17.0,20.469,20.454,116.9934]
[1680572680175,37.0,20.469,20.454,116.9934]
[1680572681274,20.0,20.468,20.454,116.9934]
[1680572681462,17.0,20.467,20.454,116.9934]
[1680572682477,20.0,20.466,20.454,116.9934]
[1680572682775,17.0,20.465,20.454,116.9934]
[1680572684274,17.0,20.467,20.454,116.9934]
[1680572684477,17.0,20.468,20.454,116.9934]
[1680572685657,17.0,20.469,20.454,116.9934]
[1680572710995,19.541,20.47,20.454,116.9934]
[1680572711197,14.71026344,20.473,20.455,17.0]
[1680572711375,19.537,20.474,20.455,17.0]
[1680572711576,20.0,20.473,20.455,17.0]
[1680572712587,17.0,20.472,20.455,17.0]
[1680572716191,37.0,20.472,20.455,17.0]
[1680572717393,20.0,20.471,20.454,124.35587114]
[1680572717597,17.0,20.47,20.454,124.35587114]
[1680572721000,17.0,20.471,20.454,124.35587114]
[1680572726788,17.0,20.472,20.454,124.35587114]
[1680572731802,19.54,20.471,20.454,124.35587114]
[1680572732121,17.0,20.47,20.454,124.35587114]
[1680572738497,17.0,20.47,20.454,116.9934]
[1680572739909,19.54,20.471,20.454,124.35587114]
[1680572740108,19.54,20.471,20.455,17.0]
[1680572742011,19.54,20.471,20.455,24.36247114]
[1680572742921,20.0,20.473,20.455,24.36247114]
[1680572743100,17.0,20.472,20.455,24.36247114]
[1680572743417,17.0,20.472,20.455,7.36247114]
[1680572744513,17.0,20.472,20.456,17.0]
[1680572745502,17.0,20.472,20.455,7.36247114]
[1680572747913,17.0,20.472,20.455,7.36247114]
[1680572748222,20.0,20.473,20.456,17.0]
[1680572748409,20.0,20.474,20.456,17.0]
[1680572748604,20.0,20.476,20.457,62.29280151]
[1680572748814,17.0,20.475,20.457,69.65527265]
[1680572749026,40.0,20.474,20.457,69.65527265]
[1680572749210,17.0,20.473,20.457,69.65527265]
[1680572750824,19.535,20.476,20.457,69.65527265]
[1680572751127,469.80425786,20.477,20.458,126.65527265]
[1680572751321,469.80425786,20.477,20.46,28.43]
[1680572751628,469.80425786,20.477,20.461,20.0]
[1680572751827,469.80425786,20.477,20.461,27.36247114]
[1680572753014,17.0,20.476,20.461,27.36247114]
[1680572753814,17.0,20.476,20.461,141.59047114]
[1680572761039,17.0,20.476,20.461,134.228]
[1680572761539,37.0,20.476,20.461,134.228]
[1680572762941,17.0,20.476,20.461,134.228]
[1680572763643,37.0,20.476,20.461,134.228]
[1680572764543,17.0,20.476,20.461,134.228]
[1680572765231,17.0,20.476,20.461,114.228]
[1680572765425,28.43,20.47,20.461,114.228]
[1680572765642,20.0,20.468,20.461,114.228]
[1680572766025,17.0,20.467,20.461,114.228]
[1680572766236,20.0,20.466,20.461,114.228]
[1680572768534,20.0,20.466,20.452,22.09094191]
[1680572768742,17.0,20.465,20.453,20.0]
[1680572770948,17.0,20.465,20.449,27.36247114]
[1680572771135,28.43,20.46,20.448,39.097404]
[1680572771448,17.0,20.459,20.448,39.097404]
[1680572771626,20.0,20.458,20.448,39.097404]
[1680572771826,17.0,20.457,20.448,39.097404]
[1680572772731,20.0,20.456,20.448,39.097404]
[1680572772937,37.0,20.455,20.448,39.097404]
[1680572773639,20.0,20.454,20.448,39.097404]
[1680572773843,17.0,20.453,20.448,39.097404]
[1680572774533,20.0,20.452,20.448,39.097404]
[1680572774754,17.0,20.451,20.448,39.097404]
[1680572775757,20.0,20.45,20.448,39.097404]
[1680572776049,17.0,20.449,20.448,39.097404]
[1680572778249,39.089996,20.448,20.431,119.748]
[1680572778454,17.0,20.447,20.432,20.0]
[1680572778841,17.0,20.447,20.432,27.36247114]
[1680572783158,17.0,20.447,20.432,20.0]
[1680572792566,20.0,20.446,20.432,20.0]
[1680572792768,17.0,20.445,20.432,20.0]
[1680572794192,17.0,20.445,20.431,119.748]
[1680572794370,20.0,20.443,20.431,119.748]
[1680572794667,17.0,20.442,20.431,119.748]
[1680572796476,17.0,20.442,20.428,20.0]
[1680572796660,28.43,20.44,20.428,20.0]
[1680572796973,37.0,20.439,20.428,20.0]
[1680572797281,42.21800094,20.439,20.416,115.0599]
[1680572797457,42.21800094,20.439,20.417,118.386]
[1680572797458,28.28,20.43,20.417,118.386]
[1680572797976,17.0,20.429,20.417,118.386]
[1680572798471,20.0,20.428,20.417,118.386]
[1680572798775,17.0,20.427,20.417,118.386]
[1680572800262,20.0,20.426,20.408,14.89228186]
[1680572800568,37.0,20.425,20.406,111.0809]
[1680572801360,20.0,20.424,20.406,111.0809]
[1680572801558,37.0,20.423,20.406,111.0809]
[1680572802171,20.0,20.423,20.406,111.0809]
[1680572802370,20.0,20.422,20.406,111.0809]
[1680572802660,17.0,20.421,20.406,111.0809]
[1680572803264,20.0,20.42,20.406,111.0809]
[1680572803473,17.0,20.419,20.406,111.0809]
[1680572804162,17.0,20.421,20.406,111.0809]
[1680572804582,17.0,20.422,20.406,111.0809]
[1680572805386,17.0,20.422,20.407,20.0]
[1680572805882,20.0,20.423,20.407,20.0]
[1680572806074,20.0,20.428,20.408,17.0]
[1680572806272,20.0,20.427,20.408,17.0]
[1680572806776,28.43,20.43,20.408,17.0]
[1680572806983,28.43,20.43,20.409,20.0]
[1680572807182,20.0,20.429,20.41,17.0]
[1680572807482,20.0,20.429,20.411,20.0]
[1680572807662,28.43,20.43,20.411,20.0]
[1680572807985,219.9758,20.438,20.412,17.0]
[1680572808160,28.17,20.43,20.412,17.0]
[1680572808561,20.0,20.437,20.412,17.0]
[1680572808562,20.0,20.437,20.413,20.0]
[1680572808762,20.0,20.437,20.414,17.0]
[1680572808981,20.0,20.436,20.414,17.0]
[1680572809192,20.0,20.436,20.415,20.0]
[1680572809370,20.0,20.436,20.416,17.0]
[1680572810180,20.0,20.436,20.416,127.1921]
[1680572810181,17.0,20.435,20.416,127.1921]
[1680572810560,20.0,20.434,20.416,127.1921]
[1680572810762,17.0,20.433,20.416,127.1921]
[1680572811462,16.5,20.433,20.416,127.1921]
[1680572811663,28.43,20.44,20.417,20.0]
[1680572811878,28.43,20.44,20.42,28.43]
[1680572812086,14.73777836,20.442,20.421,37.0]
[1680572812286,14.73777836,20.442,20.422,20.0]
[1680572812591,14.73777836,20.442,20.423,37.0]
[1680572813080,19.566,20.443,20.424,112.4418]
[1680572813286,28.17,20.44,20.424,112.4418]
[1680572813583,17.0,20.439,20.424,112.4418]
[1680572815069,37.0,20.439,20.424,112.4418]
[1680572817276,17.0,20.439,20.424,112.4418]
[1680572817775,20.0,20.438,20.424,112.4418]
[1680572817976,17.0,20.437,20.424,112.4418]
[1680572819486,20.0,20.436,20.424,112.4418]
[1680572819668,17.0,20.435,20.424,112.4418]
[1680572819867,20.0,20.434,20.424,112.4418]
[1680572820181,20.0,20.432,20.424,112.4418]
[1680572820387,17.0,20.431,20.424,112.4418]
[1680572821079,20.0,20.432,20.424,112.4418]
[1680572821287,17.0,20.431,20.424,112.4418]
[1680572824682,37.0,20.433,20.424,112.4418]
[1680572826091,20.0,20.434,20.424,112.4418]
[1680572826278,20.0,20.436,20.424,112.4418]
[1680572826587,19.573,20.437,20.424,112.4418]
[1680572827488,17.0,20.436,20.424,112.4418]
[1680572827880,19.568,20.442,20.424,112.4418]
[1680572828092,19.568,20.442,20.425,37.0]
[1680572828485,24.78100094,20.446,20.425,37.0]
[1680572828986,20.0,20.445,20.425,37.0]
[1680572829995,17.0,20.444,20.425,37.0]
[1680572830291,20.0,20.443,20.425,37.0]
[1680572830492,17.0,20.442,20.425,37.0]
[1680572831890,17.0,20.442,20.425,17.0]
[1680572834989,17.0,20.442,20.424,112.4418]
[1680572835491,17.0,20.442,20.425,17.0]
[1680572835894,20.0,20.443,20.425,17.0]
[1680572836079,20.0,20.445,20.426,20.0]
[1680572836284,17.0,20.444,20.427,17.0]
[1680572836487,20.0,20.443,20.428,20.0]
[1680572836699,20.0,20.443,20.427,17.0]
[1680572836998,20.0,20.443,20.426,17.0]
[1680572837490,19.563,20.446,20.427,20.0]
[1680572837684,19.563,20.446,20.428,37.0]
[1680572837997,19.57544,20.447,20.429,20.0]
[1680572838293,17.0,20.446,20.43,17.0]
[1680572838597,17.0,20.446,20.431,20.0]
[1680572838775,17.0,20.448,20.431,20.0]
[1680572839878,19.563,20.446,20.431,20.0]
[1680572840089,17.0,20.445,20.428,20.0]
[1680572843708,113.4118,20.449,20.429,24.36247114]
[1680572843879,17.0,20.448,20.431,20.0]
[1680572844500,17.0,20.448,20.43,20.0]
[1680572844997,17.0,20.448,20.431,17.0]
[1680572845297,17.0,20.448,20.432,20.0]
[1680572845492,17.0,20.448,20.43,20.0]
[1680572845997,37.0,20.448,20.428,20.0]
[1680572846297,37.0,20.448,20.429,17.0]
[1680572846596,37.0,20.448,20.43,20.0]
[1680572847381,17.0,20.448,20.43,20.0]
[1680572847580,37.0,20.448,20.43,20.0]
[1680572848080,17.0,20.448,20.43,20.0]
[1680572848585,37.0,20.448,20.43,20.0]
[1680572849183,45.21800094,20.447,20.427,111.5871]
[1680572849385,17.0,20.446,20.427,111.5871]
[1680572849588,20.0,20.445,20.427,111.5871]
[1680572849781,20.0,20.443,20.427,111.5871]
[1680572849982,17.0,20.442,20.427,111.5871]
[1680572851995,17.0,20.444,20.427,111.5871]
[1680572852199,20.0,20.443,20.427,111.5871]
[1680572852397,17.0,20.442,20.427,111.5871]
[1680572855102,28.28,20.44,20.427,111.5871]
[1680572855287,17.0,20.439,20.427,111.5871]
[1680572855483,17.0,20.439,20.424,112.4418]
[1680572855800,20.0,20.438,20.424,112.4418]
[1680572855997,20.0,20.436,20.424,112.4418]
[1680572856199,17.0,20.435,20.424,112.4418]
[1680572861609,20.0,20.434,20.424,112.4418]
[1680572862108,17.0,20.433,20.424,112.4418]
[1680572864516,20.0,20.434,20.424,112.4418]
[1680572865013,20.0,20.435,20.424,112.4418]
[1680572865707,17.0,20.434,20.424,112.4418]
[1680572865898,20.0,20.433,20.424,112.4418]
[1680572876221,17.0,20.432,20.424,112.4418]
[1680572876626,20.0,20.431,20.424,112.4418]
[1680572876824,17.0,20.43,20.415,7.36247114]
[1680572877020,17.0,20.43,20.417,115.3238]
[1680572877523,45.43,20.43,20.417,115.3238]
[1680572878209,20.0,20.429,20.417,115.3238]
[1680572878408,17.0,20.428,20.417,115.3238]
[1680572879317,17.0,20.428,20.411,7.36247114]
[1680572879518,19.583,20.426,20.411,7.36247114]
[1680572879818,19.583,20.426,20.406,116.4929]
[1680572879819,20.0,20.424,20.406,116.4929]
[1680572880021,37.0,20.423,20.406,116.4929]
[1680572880406,20.0,20.422,20.406,116.4929]
[1680572880613,20.0,20.422,20.41,20.0]
[1680572880806,17.0,20.421,20.41,20.0]
[1680572886619,17.0,20.422,20.41,20.0]
[1680572887025,20.0,20.423,20.41,20.0]
[1680572887328,39.586,20.423,20.41,20.0]
[1680572887512,37.0,20.422,20.41,20.0]
[1680572887712,28.17,20.42,20.41,20.0]
[1680572887914,17.0,20.419,20.41,20.0]
[1680572889820,17.0,20.419,20.41,19.5]
[1680572890334,39.586,20.423,20.406,116.4929]
[1680572890528,17.0,20.422,20.406,116.4929]
[1680572892134,28.28,20.42,20.406,116.4929]
[1680572892316,37.0,20.419,20.406,116.4929]
[1680572892931,17.0,20.419,20.406,116.4929]
[1680572894935,20.0,20.418,20.406,116.4929]
[1680572895225,17.0,20.417,20.406,116.4929]
[1680572901030,20.0,20.418,20.406,116.4929]
[1680572901230,17.0,20.417,20.406,116.4929]
[1680572902712,20.0,20.416,20.406,116.4929]
[1680572902913,17.0,20.415,20.406,116.4929]
[1680572905926,17.0,20.417,20.406,116.4929]
[1680572909428,39.592,20.416,20.406,116.4929]
[1680572909635,17.0,20.415,20.406,116.4929]
[1680572909944,20.0,20.414,20.406,116.4929]
[1680572910126,37.0,20.413,20.406,116.4929]
[1680572910534,20.0,20.412,20.406,116.4929]
[1680572910835,17.0,20.411,20.406,116.4929]
[1680572911036,20.0,20.41,20.406,116.4929]
[1680572911330,20.0,20.41,20.4,80.0]
[1680572911331,17.0,20.409,20.4,80.0]
[1680572913642,20.0,20.408,20.4,80.0]
[1680572913946,17.0,20.407,20.4,80.0]
[1680572915837,28.28,20.41,20.4,80.0]
[1680572917139,17.0,20.409,20.4,80.0]
[1680572918046,20.0,20.408,20.4,80.0]
[1680572918237,17.0,20.407,20.4,80.0]
[1680572918738,20.0,20.406,20.4,80.0]
[1680572918941,17.0,20.405,20.4,80.0]
[1680572919252,20.0,20.406,20.4,80.0]
[1680572919542,17.0,20.405,20.4,80.0]
[1680572923246,17.0,20.407,20.4,80.0]
[1680572924928,17.0,20.408,20.4,80.0]
[1680572928041,17.0,20.409,20.4,80.0]
[1680572932650,19.595,20.413,20.4,80.0]
[1680572934045,20.0,20.411,20.4,80.0]
[1680572934259,17.0,20.41,20.4,80.0]
[1680572936153,17.0,20.412,20.4,80.0]
[1680572936657,20.0,20.411,20.4,80.0]
[1680572936847,17.0,20.41,20.4,80.0]
[1680572942342,17.0,20.411,20.4,80.0]
[1680572942655,20.0,20.41,20.4,80.0]
[1680572942858,17.0,20.409,20.4,80.0]
[1680572944033,17.0,20.411,20.4,80.0]
[1680572944235,20.0,20.41,20.4,80.0]
[1680572944440,17.0,20.409,20.4,80.0]
[1680572946245,20.0,20.408,20.4,80.0]
[1680572946557,17.0,20.407,20.4,80.0]
[1680572952063,17.0,20.408,20.4,80.0]
[1680572952454,20.0,20.407,20.4,80.0]
[1680572952664,17.0,20.406,20.4,80.0]
[1680572956762,17.0,20.408,20.4,80.0]
[1680572958373,39.595,20.414,20.4,80.0]
[1680572958661,19.595,20.414,20.4,80.0]
[1680572958843,20.0,20.413,20.4,80.0]
[1680572959046,28.28,20.41,20.4,80.0]
[1680572959568,37.0,20.409,20.4,80.0]
[1680572960754,17.0,20.409,20.4,80.0]
[1680572967370,28.28,20.41,20.4,80.0]
[1680572967673,19.598,20.411,20.4,80.0]
[1680572968767,17.0,20.41,20.4,80.0]
[1680572969673,17.0,20.412,20.4,80.0]
[1680572970174,25.23490016,20.413,20.4,80.0]
[1680572970377,20.0,20.413,20.401,20.0]
[1680572970561,20.0,20.416,20.401,20.0]
[1680572971661,17.0,20.415,20.401,20.0]
[1680572971974,20.0,20.414,20.401,20.0]
[1680572972174,17.0,20.413,20.401,20.0]
[1680572972574,17.0,20.415,20.401,20.0]
[1680572972764,20.0,20.414,20.401,20.0]
[1680572972966,17.0,20.413,20.401,20.0]
[1680572973158,17.0,20.413,20.4,80.0]
[1680572975361,17.0,20.413,20.401,20.0]
[1680572976176,17.0,20.413,20.4,80.0]
[1680572979188,14.56363155,20.418,20.4,80.0]
[1680572979367,19.589,20.419,20.401,37.0]
[1680572979572,19.589,20.419,20.401,57.0]
[1680572979772,19.589,20.419,20.401,64.36247114]
[1680572980575,17.0,20.418,20.401,64.36247114]
[1680572989692,17.0,20.418,20.401,63.86247114]
[1680572992395,17.0,20.418,20.401,63.86247114]
[1680572994589,17.0,20.418,20.401,46.86247114]
[1680572994801,17.0,20.418,20.401,20.0]
[1680572997986,17.0,20.418,20.402,20.0]
[1680572998176,17.0,20.418,20.404,20.0]
[1680572998694,17.0,20.418,20.402,20.0]
[1680572998993,17.0,20.418,20.403,20.0]
[1680572999983,17.0,20.418,20.401,20.0]
[1680573000186,17.0,20.418,20.402,20.0]
[1680573000482,17.0,20.418,20.403,20.0]
[1680573000995,17.0,20.418,20.402,20.0]
[1680573002601,17.0,20.418,20.401,20.0]
[1680573004200,20.0,20.417,20.401,20.0]
[1680573004398,17.0,20.416,20.401,20.0]
[1680573004698,20.0,20.415,20.401,20.0]
[1680573004882,17.0,20.414,20.401,20.0]
[1680573006500,20.0,20.413,20.4,80.0]
[1680573006701,17.0,20.412,20.4,80.0]
[1680573006883,20.0,20.411,20.4,80.0]
[1680573007088,17.0,20.41,20.4,80.0]
[1680573007693,45.28,20.41,20.4,80.0]
[1680573015716,17.0,20.41,20.4,80.0]
[1680573015895,17.0,20.412,20.4,80.0]
[1680573017708,20.0,20.413,20.4,80.0]
[1680573017909,111.2868,20.416,20.401,20.0]
[1680573018102,111.2868,20.416,20.401,40.0]
[1680573019398,135.2348,20.426,20.401,40.0]
[1680573019598,20.0,20.424,20.403,20.0]
[1680573019814,20.0,20.423,20.403,20.0]
[1680573020620,17.0,20.422,20.403,20.0]
[1680573023017,17.0,20.422,20.402,17.0]
[1680573023322,17.0,20.422,20.403,20.0]
[1680573024327,28.43,20.42,20.403,20.0]
[1680573024625,17.0,20.419,20.402,20.0]
[1680573030421,28.43,20.42,20.402,20.0]
[1680573030616,20.0,20.423,20.403,17.0]
[1680573030819,20.0,20.425,20.404,20.0]
[1680573031018,20.0,20.425,20.405,17.0]
[1680573031323,20.0,20.426,20.406,20.0]
[1680573031923,17.0,20.425,20.406,20.0]
[1680573032122,20.0,20.424,20.407,113.9454]
[1680573032334,17.0,20.423,20.407,113.9454]
[1680573032810,17.0,20.425,20.407,113.9454]
[1680573033126,20.0,20.424,20.407,113.9454]
[1680573033325,17.0,20.423,20.407,113.9454]
[1680573041034,28.43,20.42,20.407,113.9454]
[1680573041330,20.0,20.418,20.407,113.9454]
[1680573041525,17.0,20.417,20.407,113.9454]
[1680573043431,17.0,20.419,20.407,113.9454]
[1680573045426,20.0,20.418,20.407,113.9454]
[1680573045617,17.0,20.417,20.407,113.9454]
[1680573048838,17.0,20.418,20.407,113.9454]
[1680573049429,17.0,20.419,20.407,113.9454]
[1680573055028,31.84708857,20.419,20.407,113.9454]
[1680573071044,20.0,20.417,20.407,113.9454]
[1680573071234,37.0,20.416,20.407,113.9454]
[1680573072753,37.0,20.416,20.4,80.0]
[1680573072951,37.0,20.416,20.401,118.6267]
[1680573075756,20.0,20.415,20.401,118.6267]
[1680573076053,37.0,20.414,20.401,118.6267]
[1680573076843,20.0,20.413,20.401,118.6267]
[1680573077045,17.0,20.412,20.401,118.6267]
[1680573078041,17.0,20.413,20.401,118.6267]
[1680573082960,28.17,20.41,20.401,118.6267]
[1680573083144,20.0,20.408,20.401,118.6267]
[1680573083545,17.0,20.407,20.401,118.6267]
[1680573086160,17.0,20.408,20.401,118.6267]
[1680573086357,28.17,20.41,20.401,118.6267]
[1680573086566,174.5386,20.416,20.401,118.6267]
[1680573086876,135.3536,20.416,20.401,118.6267]
[1680573087168,40.0,20.415,20.401,118.6267]
[1680573087867,17.0,20.414,20.401,118.6267]
[1680573088165,20.0,20.413,20.401,118.6267]
[1680573088346,17.0,20.412,20.401,118.6267]
[1680573093953,37.0,20.412,20.401,118.6267]
[1680573096068,17.0,20.412,20.401,118.6267]
[1680573099170,20.0,20.411,20.401,118.6267]
[1680573099471,17.0,20.41,20.401,118.6267]
[1680573102477,17.0,20.411,20.401,118.6267]
[1680573104291,17.0,20.412,20.401,118.6267]
[1680573105883,39.596,20.413,20.401,118.6267]
[1680573106081,145.50633227,20.427,20.401,118.6267]
[1680573106082,54.05295157,20.419,20.401,118.6267]
[1680573106494,54.05295157,20.419,20.402,20.0]
[1680573107082,54.05295157,20.419,20.403,20.0]
[1680573107482,17.0,20.418,20.403,20.0]
[1680573110485,17.0,20.418,20.402,20.0]
[1680573115289,17.0,20.418,20.403,20.0]
[1680573118395,17.0,20.418,20.402,20.0]
[1680573119898,17.0,20.418,20.403,20.0]
[1680573120393,17.0,20.418,20.402,20.0]
[1680573120700,37.0,20.418,20.402,20.0]
[1680573123585,17.0,20.418,20.402,20.0]
[1680573132104,37.0,20.418,20.402,20.0]
[1680573132609,17.0,20.418,20.402,20.0]
[1680573135513,17.0,20.418,20.403,20.0]
[1680573140817,17.0,20.418,20.402,40.0]
[1680573140997,17.0,20.418,20.402,20.0]
[1680573144199,17.0,20.419,20.402,20.0]
[1680573144420,17.0,20.419,20.403,20.0]
[1680573148509,17.0,20.419,20.404,17.0]
[1680573148818,17.0,20.419,20.405,20.0]
[1680573150028,19.583,20.426,20.405,20.0]
[1680573150332,19.583,20.426,20.407,20.0]
[1680573150627,37.0,20.425,20.407,20.0]
[1680573150810,37.0,20.425,20.409,20.0]
[1680573151610,37.0,20.425,20.408,115.9058]
[1680573152324,37.0,20.425,20.409,20.0]
[1680573153828,37.0,20.425,20.408,115.9058]
[1680573155610,37.0,20.425,20.409,20.0]
[1680573159635,37.0,20.425,20.408,115.9058]
[1680573160134,37.0,20.425,20.409,20.0]
[1680573162639,37.0,20.425,20.408,115.9058]
[1680573162937,37.0,20.425,20.409,20.0]
[1680573166325,37.0,20.425,20.408,115.9058]
[1680573169243,37.0,20.425,20.409,37.0]
[1680573169462,37.0,20.425,20.408,115.9058]
[1680573184749,111.0432,20.427,20.41,22.69]
[1680573184938,111.0432,20.427,20.412,20.0]
[1680573185250,111.0432,20.427,20.413,17.0]
[1680573185758,111.0432,20.427,20.414,20.0]
[1680573188735,111.0432,20.427,20.412,27.36247114]
[1680573189049,111.0432,20.427,20.413,37.0]
[1680573189460,111.0432,20.427,20.414,20.0]
[1680573191978,111.0432,20.427,20.413,20.0]
[1680573192256,17.0,20.426,20.413,20.0]
[1680573192556,17.0,20.426,20.411,20.0]
[1680573192935,111.0432,20.427,20.412,20.0]
[1680573193140,111.0432,20.427,20.413,20.0]
[1680573193861,111.0432,20.427,20.412,20.0]
[1680573195860,37.0,20.426,20.412,20.0]
[1680573196047,17.0,20.426,20.411,20.0]
[1680573196742,17.0,20.426,20.411,27.36247114]
[1680573206959,111.0432,20.427,20.412,17.0]
[1680573207258,111.0432,20.427,20.413,20.0]
[1680573223172,111.0432,20.427,20.413,34.42763585]
[1680573237080,17.0,20.426,20.413,34.42763585]
[1680573250784,17.0,20.426,20.413,20.0]
[1680573251183,20.0,20.425,20.413,20.0]
[1680573251390,17.0,20.424,20.413,20.0]
[1680573251579,17.0,20.424,20.411,20.0]
[1680573251774,22.79,20.42,20.411,20.0]
[1680573251980,17.0,20.419,20.406,20.0]
[1680573252488,17.0,20.419,20.406,27.36247114]
[1680573252671,17.0,20.419,20.407,7.36247114]
[1680573252990,17.0,20.419,20.408,20.0]
[1680573255197,116.1607,20.426,20.408,20.0]
[1680573255404,116.1607,20.426,20.41,22.84]
[1680573255780,116.1607,20.426,20.411,27.36247114]
[1680573256600,17.0,20.425,20.411,27.36247114]
[1680573257298,111.0432,20.427,20.412,7.36247114]
[1680573257507,111.0432,20.427,20.413,37.0]
[1680573258196,111.0432,20.427,20.414,20.0]
[1680573258387,110.9568628,20.427,20.42,22.73]
[1680573258895,110.9568628,20.427,20.421,20.0]
[1680573261598,113.2618,20.435,20.421,20.0]
[1680573262102,17.0,20.434,20.421,20.0]
[1680573263092,17.0,20.436,20.421,20.0]
[1680573265597,17.0,20.437,20.421,20.0]
[1680573266809,47.959,20.44,20.421,20.0]
[1680573266810,28.39,20.44,20.421,20.0]
[1680573267024,115.8835,20.441,20.423,20.0]
[1680573267228,115.8835,20.441,20.424,17.0]
[1680573270612,115.8835,20.441,20.423,7.36247114]
[1680573271419,114.2172,20.438,20.423,7.36247114]
[1680573271803,114.2172,20.438,20.424,17.0]
[1680573273819,114.2172,20.438,20.424,24.36247114]
[1680573279440,114.2172,20.438,20.424,7.36247114]
[1680573279935,114.2172,20.438,20.425,17.0]
[1680573280321,114.2172,20.438,20.425,24.36247114]
[1680573295141,114.2172,20.438,20.425,39.20678616]
[1680573314456,114.2172,20.438,20.426,20.0]
[1680573314662,114.2172,20.438,20.427,17.0]
[1680573315046,114.2172,20.438,20.425,22.20678616]
[1680573325675,20.0,20.437,20.425,14.84431502]
[1680573325872,17.0,20.436,20.421,20.0]
[1680573326370,20.0,20.435,20.421,20.0]
[1680573326560,17.0,20.434,20.421,20.0]
[1680573328668,17.0,20.436,20.421,27.36247114]
[1680573332257,20.0,20.435,20.421,27.36247114]
[1680573332569,17.0,20.434,20.413,19.595]